bitfinex-derivatives/quotes_ETHF0:USTF0_20250828
["timestamp","ask_amount","ask_price","bid_price","bid_amount"]
[1756344806586,0.9452,4517.8,4517.6,3.2078]
[1756344806784,0.9452,4517.7,4517.6,3.2078]
[1756344807195,0.9452,4517.7,4517.6,4.1748]
[1756344807389,21.3077,4517.7,4517.6,4.1748]
[1756344807695,21.5982,4517.7,4517.2,0.5784]
[1756344807895,0.9452,4517.3,4517.2,0.2883]
[1756344808091,0.9452,4517.3,4517.2,0.967]
[1756344808092,0.6547,4517.3,4517.2,0.967]
[1756344808487,0.9452,4517.3,4517.2,0.967]
[1756344808896,0.9452,4517.2,4517.1,3.2078]
[1756344809196,0.9452,4517.2,4517.1,4.1748]
[1756344809599,0.6547,4517.2,4517.1,4.1748]
[1756344809995,0.9452,4517.2,4517.1,4.1748]
[1756344810195,0.6547,4517.2,4517.1,4.1748]
[1756344810591,0.6547,4517.2,4516.6,3.7862]
[1756344810592,0.9452,4517.2,4516.6,3.7862]
[1756344810792,0.9452,4517.2,4517.1,0.967]
[1756344811294,0.3751,4517.2,4516.6,3.2078]
[1756344811491,0.9452,4516.7,4516.6,0.6787]
[1756344811800,0.9452,4516.7,4516.6,0.3886]
[1756344811992,0.6547,4516.7,4516.6,1.0038]
[1756344812494,21.3363,4517.1,4517.0,0.1957]
[1756344812696,22.14104448,4517.1,4517.0,0.5023]
[1756344813410,20.8272,4517.1,4517.0,1.0037]
[1756344813601,0.3964,4517.5,4517.4,1.0037]
[1756344813792,21.3093,4517.5,4517.4,1.0037]
[1756344814498,21.0214,4517.5,4517.4,1.0037]
[1756344815097,21.6162,4517.5,4517.0,3.823]
[1756344815304,21.3093,4517.5,4517.4,1.0037]
[1756344815801,21.0214,4517.5,4517.4,1.0037]
[1756344815997,20.625,4517.5,4517.4,1.0037]
[1756344816190,20.625,4517.7,4517.5,0.6152]
[1756344816390,20.625,4517.7,4517.6,4.2115]
[1756344817293,20.8192,4517.7,4517.6,4.2115]
[1756344817503,21.3093,4517.7,4517.6,4.2115]
[1756344817700,21.6162,4517.7,4517.6,4.2115]
[1756344818395,21.3093,4517.7,4517.6,4.2115]
[1756344818598,21.0214,4517.7,4517.6,4.2115]
[1756344818901,20.625,4517.7,4517.6,4.2115]
[1756344819301,20.8192,4517.7,4517.6,4.2115]
[1756344819898,21.3093,4517.7,4517.6,4.2115]
[1756344820405,21.6162,4517.7,4517.6,4.2115]
[1756344821098,0.3964,4517.2,4517.1,44.623]
[1756344822300,0.6843,4517.5,4517.4,1.0037]
[1756344822502,0.9912,4517.5,4517.4,1.0037]
[1756344822703,0.9912,4517.5,4517.1,44.0078]
[1756344822901,0.6843,4517.3,4517.2,1.0037]
[1756344823201,0.9912,4517.3,4517.1,44.0078]
[1756344823502,0.9912,4517.2,4517.1,3.2078]
[1756344824404,0.9912,4517.2,4517.1,4.2115]
[1756344825102,0.1942,4517.2,4517.1,4.2115]
[1756344825306,20.625,4517.7,4517.4,1.0037]
[1756344825307,0.3964,4517.5,4517.4,1.0037]
[1756344825609,21.0214,4517.7,4517.6,1.0037]
[1756344825901,21.3093,4517.7,4517.6,1.0037]
[1756344826303,21.6162,4517.7,4517.6,1.0037]
[1756344826696,21.3093,4517.7,4517.6,1.0037]
[1756344827107,21.6162,4517.7,4517.6,1.0037]
[1756344827502,21.6162,4517.7,4517.6,0.1957]
[1756344827704,0.3964,4517.2,4517.1,3.2078]
[1756344827904,0.6843,4517.2,4517.1,4.4868]
[1756344828104,0.3964,4517.2,4517.1,4.8895]
[1756344828300,0.6821,4517.2,4517.1,4.8895]
[1756344828497,1.0907,4517.2,4517.1,4.8895]
[1756344828803,22.3105,4517.7,4517.6,0.6951]
[1756344829207,22.0036,4517.7,4517.6,1.6817]
[1756344829407,1.6855,4518.5,4518.4,0.1957]
[1756344829707,1.6855,4518.5,4518.4,0.9704]
[1756344829908,1.6855,4518.5,4518.4,1.279]
[1756344830207,1.6855,4518.5,4518.4,1.6817]
[1756344831207,0.6965,4519.2,4518.7,0.3066]
[1756344831410,1.6855,4519.0,4518.8,3.2078]
[1756344831706,1.6855,4518.9,4518.8,3.2078]
[1756344832304,0.989,4518.8,4518.7,0.6638]
[1756344832505,0.97,4518.8,4518.7,1.6817]
[1756344832712,0.5948,4518.7,4518.3,3.823]
[1756344832903,3.2078,4519.6,4518.3,0.3066]
[1756344832904,1.6855,4518.4,4518.3,0.3066]
[1756344833101,0.4799,4518.2,4517.8,41.1066]
[1756344833302,1.0907,4517.7,4517.6,1.6817]
[1756344833502,1.3786,4517.7,4517.6,1.6817]
[1756344834213,0.8885,4517.7,4517.6,1.6817]
[1756344834403,1.0907,4517.7,4517.6,1.6817]
[1756344834708,1.3786,4517.7,4517.6,1.6817]
[1756344834907,1.0907,4517.7,4517.6,1.6817]
[1756344835211,0.6821,4517.7,4517.6,1.6817]
[1756344835610,1.0907,4517.7,4517.6,1.6817]
[1756344835812,1.6855,4517.7,4517.6,0.6951]
[1756344836801,1.6855,4517.7,4517.6,1.6817]
[1756344837304,1.3786,4517.7,4517.6,1.6817]
[1756344837906,1.0907,4517.7,4517.6,1.6817]
[1756344838305,1.3786,4517.7,4517.6,1.6817]
[1756344838504,1.6855,4517.7,4517.6,1.6817]
[1756344838812,1.6855,4517.7,4517.6,0.9704]
[1756344839104,1.6855,4517.6,4517.5,3.7101]
[1756344839311,22.3385,4517.6,4517.5,4.1782]
[1756344839612,22.0316,4517.6,4517.5,4.8895]
[1756344840016,20.653,4517.6,4517.5,4.8895]
[1756344840313,22.3385,4517.6,4517.5,3.2078]
[1756344840608,0.4086,4518.0,4517.5,4.2743]
[1756344840813,0.2879,4518.1,4518.0,1.6817]
[1756344840814,1.6855,4518.1,4518.0,1.6817]
[1756344841010,0.4086,4518.4,4518.0,1.0665]
[1756344841309,0.3069,4518.6,4518.0,0.4027]
[1756344841310,1.6855,4518.5,4518.0,0.4027]
[1756344841611,1.6855,4518.2,4518.1,0.5023]
[1756344841812,1.3786,4518.2,4518.1,1.6584]
[1756344842008,1.3786,4518.2,4518.1,1.65156663]
[1756344842312,1.6756,4518.2,4518.1,1.65156663]
[1756344842508,1.0235,4518.1,4517.6,1.57678392]
[1756344842707,1.6835,4517.6,4517.5,3.2078]
[1756344842908,15.0305,4517.6,4517.5,3.2078]
[1756344843311,15.0305,4517.6,4517.5,3.5878]
[1756344843614,14.7335,4517.6,4517.5,4.5428]
[1756344843814,14.007,4517.6,4517.5,4.5428]
[1756344844010,0.4297,4518.4,4517.7,0.39839]
[1756344844319,17.3806,4518.3,4518.2,1.6143]
[1756344844521,17.8103,4518.3,4518.2,1.6143]
[1756344844814,18.3045,4518.3,4518.2,1.6143]
[1756344845016,18.6015,4518.3,4518.2,1.6143]
[1756344845319,18.6015,4518.3,4518.2,0.6593]
[1756344845510,18.6015,4518.3,4518.2,1.2189]
[1756344845716,18.6015,4518.3,4518.0,3.2078]
[1756344845917,0.66,4518.1,4518.0,3.2078]
[1756344846116,1.6835,4518.1,4518.0,3.2078]
[1756344846316,1.6835,4518.1,4518.0,4.1597]
[1756344846615,1.6835,4518.1,4518.0,3.2078]
[1756344846921,1.0897,4518.1,4518.0,4.8221]
[1756344847310,0.66,4518.1,4518.0,4.8221]
[1756344847916,0.7265,4518.8,4518.4,0.9673]
[1756344848106,0.7265,4518.8,4518.7,1.6143]
[1756344848107,1.3865,4518.8,4518.7,1.6143]
[1756344848312,1.6835,4518.8,4518.7,1.6143]
[1756344848611,20.666,4519.1,4518.5,3.9738]
[1756344848612,1.6835,4518.6,4518.5,3.9738]
[1756344848812,1.3865,4518.6,4518.5,4.8221]
[1756344849011,1.0897,4518.6,4518.5,4.8221]
[1756344849415,1.3865,4518.6,4518.5,4.8221]
[1756344850111,1.6835,4518.6,4518.5,3.2078]
[1756344850718,1.6835,4518.6,4518.5,4.4267]
[1756344851921,1.3865,4518.6,4518.5,4.8221]
[1756344852121,1.0897,4518.6,4518.5,4.8221]
[1756344852825,20.657,4518.8,4518.7,1.6143]
[1756344854724,21.7467,4518.8,4518.7,1.6143]
[1756344855626,22.0435,4518.8,4518.7,1.6143]
[1756344855817,22.3405,4518.8,4518.7,0.9263]
[1756344856617,22.0435,4518.8,4518.7,1.6143]
[1756344856822,0.17847789,4520.7,4518.7,1.6143]
[1756344856823,0.43628898,4519.8,4519.7,1.6143]
[1756344857023,0.00658898,4519.8,4519.7,1.6143]
[1756344857327,1.69008898,4519.8,4519.7,1.6143]
[1756344857524,1.69008898,4519.8,4519.7,0.9263]
[1756344857832,1.3865,4519.4,4519.3,4.8221]
[1756344858022,1.6835,4519.4,4519.3,4.1341]
[1756344858218,0.00658898,4519.8,4519.7,1.2189]
[1756344858219,1.39308898,4519.8,4519.7,1.2189]
[1756344858414,1.69008898,4519.8,4519.7,1.6143]
[1756344858625,0.00658898,4519.8,4519.7,1.6143]
[1756344860125,1.6835,4519.5,4519.4,0.4734]
[1756344860322,1.6835,4519.5,4519.4,0.1941]
[1756344860629,1.6835,4519.4,4519.3,3.2078]
[1756344861225,1.6835,4519.4,4519.3,3.6812]
[1756344861526,1.6835,4519.4,4519.3,4.8221]
[1756344861823,1.3865,4519.4,4519.3,4.8221]
[1756344862128,1.6835,4518.9,4518.8,3.6812]
[1756344862924,22.3595,4518.9,4518.8,3.2078]
[1756344863128,0.5938,4519.3,4518.8,4.8221]
[1756344863323,0.7265,4519.3,4519.2,1.6143]
[1756344863630,4.445,4519.4,4519.3,1.6143]
[1756344863833,5.3373,4519.4,4519.3,1.6143]
[1756344864126,0.00658898,4519.8,4519.7,1.6143]
[1756344872239,0.295,4521.1,4519.6,0.39822]
[1756344872240,1.0857,4521.3,4521.2,0.6723]
[1756344872539,1.6809,4521.3,4521.2,1.6424]
[1756344872732,1.6809,4521.3,4521.2,0.2046]
[1756344873038,1.3859,4521.3,4521.2,1.6424]
[1756344873237,1.0857,4521.3,4521.2,1.6424]
[1756344873835,1.6809,4521.3,4521.2,1.6424]
[1756344875037,1.6809,4521.3,4521.2,0.4008]
[1756344875735,22.3209,4521.3,4521.2,1.2428]
[1756344876243,22.3209,4521.3,4521.2,1.6424]
[1756344877447,1.0857,4521.3,4521.2,4.8502]
[1756344877840,0.4745,4521.3,4521.2,4.8502]
[1756344878242,20.9322,4521.6,4521.2,3.8801]
[1756344878437,32.3525,4521.4,4521.3,1.6424]
[1756344878637,33.5589,4521.4,4521.3,1.6424]
[1756344880046,32.5504,4521.4,4521.3,1.6424]
[1756344880542,32.9637,4521.4,4521.3,1.6424]
[1756344880728,33.5589,4521.4,4521.3,1.6424]
[1756344882729,33.5589,4521.4,4520.7,4.0502443]
[1756344882730,0.9726,4520.8,4520.7,3.2078]
[1756344882936,22.2869,4520.8,4520.7,3.2078]
[1756344883139,0.6724,4520.0,4519.9,1.0719]
[1756344883339,0.5001,4521.0,4520.9,0.4677]
[1756344883639,0.5001,4521.0,4520.9,1.6424]
[1756344883640,22.2889,4521.0,4520.9,1.6424]
[1756344883839,1.6809,4520.7,4520.6,0.2046]
[1756344884047,1.6809,4520.7,4520.4,7.2580443]
[1756344884048,1.6809,4520.5,4520.4,3.8987]
[1756344884349,1.2676,4520.0,4519.9,3.2078]
[1756344884643,1.6809,4519.5,4519.4,3.2078]
[1756344884848,1.6809,4519.5,4519.2,0.3996]
[1756344884849,0.6724,4519.1,4519.0,0.2901]
[1756344885145,22.3029,4519.1,4519.0,1.2428]
[1756344885640,22.3029,4519.1,4518.9,3.2078]
[1756344885641,21.2944,4519.1,4518.9,3.2078]
[1756344885940,1.0085,4519.0,4518.9,3.2078]
[1756344886348,0.7083,4519.5,4518.9,4.1779]
[1756344886538,20.9192,4519.6,4519.2,0.9701]
[1756344886739,0.4133,4519.4,4519.2,0.9701]
[1756344886944,0.4133,4519.4,4519.3,0.9701]
[1756344887642,1.0085,4519.1,4518.9,3.2078]
[1756344887842,20.631,4519.2,4518.9,3.2078]
[1756344888049,1.0085,4519.1,4519.0,0.9701]
[1756344888940,1.6809,4519.1,4519.0,1.6424]
[1756344889141,0.4745,4519.1,4519.0,1.6424]
[1756344889341,20.631,4519.2,4519.0,1.6424]
[1756344889543,20.631,4519.2,4519.1,1.6424]
[1756344890343,22.3119,4519.2,4518.9,3.2078]
[1756344890543,1.6809,4519.0,4518.9,3.2078]
[1756344891047,1.6809,4518.4,4518.3,3.2078]
[1756344891244,22.3019,4518.4,4518.3,3.2078]
[1756344891447,21.6295,4518.4,4518.3,3.2078]
[1756344892038,21.6395,4518.4,4518.3,4.1779]
[1756344892546,21.0443,4518.4,4518.3,3.2078]
[1756344892847,21.6395,4518.4,4518.3,3.2078]
[1756344893847,22.3119,4518.4,4518.3,3.2078]
[1756344894043,0.8878,4518.4,4518.3,4.8502]
[1756344894249,21.1065,4518.4,4518.3,4.8502]
[1756344894443,20.8319,4518.4,4518.3,4.8502]
[1756344894644,20.632,4518.4,4518.3,4.8502]
[1756344894943,0.1999,4518.8,4518.7,0.6723]
[1756344895243,21.2974,4518.8,4518.7,5.6926443]
[1756344895954,0.1999,4518.8,4518.7,5.6926443]
[1756344896244,21.5138,4519.1,4519.0,1.6424]
[1756344896450,22.3069,4519.1,4519.0,0.2046]
[1756344896646,22.3069,4519.1,4518.7,4.0502443]
[1756344896647,0.4133,4519.0,4518.7,4.4498443]
[1756344896947,0.6724,4518.6,4518.5,0.2901]
[1756344897150,21.2924,4518.6,4518.3,3.2078]
[1756344897346,1.0085,4518.5,4518.3,3.2078]
[1756344897650,1.0085,4518.4,4518.3,3.2078]
[1756344898044,20.623,4518.4,4518.3,4.1779]
[1756344898350,1.0085,4518.9,4518.3,3.2078]
[1756344898351,20.625,4518.6,4518.3,3.2078]
[1756344898547,20.625,4518.6,4518.5,0.6897]
[1756344898938,20.625,4518.6,4518.5,0.9701]
[1756344899247,21.6335,4518.6,4518.3,3.2078]
[1756344899448,1.0085,4518.5,4518.3,3.2078]
[1756344899648,20.625,4518.6,4518.3,3.2078]
[1756344900143,1.0085,4518.5,4518.3,3.2078]
[1756344900343,20.625,4518.6,4518.4,0.9701]
[1756344900544,20.625,4518.6,4518.5,0.9701]
[1756344900745,0.4133,4518.8,4518.5,0.9701]
[1756344900945,0.7083,4518.4,4518.3,3.2078]
[1756344901142,21.6365,4518.4,4518.3,3.2078]
[1756344903557,21.6365,4518.4,4517.8,3.2078]
[1756344903746,0.3998,4517.9,4517.8,3.2078]
[1756344903942,0.22133,4518.3,4517.3,3.2078]
[1756344904148,0.9916,4517.4,4516.8,3.2078]
[1756344904348,0.9916,4516.9,4516.8,3.2078]
[1756344904850,0.2922,4516.6,4516.3,3.2078]
[1756344905050,0.5918,4516.4,4516.3,3.6137]
[1756344905249,9.92,4516.7,4516.4,0.9865]
[1756344905459,0.5918,4516.6,4516.3,3.2078]
[1756344905748,0.5918,4516.6,4516.4,0.9865]
[1756344905947,9.92,4516.7,4516.4,0.7028]
[1756344906154,0.5918,4516.4,4516.3,3.2078]
[1756344906354,19.9298,4516.4,4516.3,4.1943]
[1756344906544,0.2996,4517.1,4516.4,0.9865]
[1756344906854,52.548,4517.9,4517.7,0.2969]
[1756344907058,0.5918,4517.8,4517.7,0.9865]
[1756344907259,0.21591696,4520.1,4518.4,0.2969]
[1756344907260,21.2708,4518.5,4518.4,0.2969]
[1756344907461,0.5918,4518.5,4518.4,0.9865]
[1756344907758,20.679,4518.7,4518.4,0.9865]
[1756344907959,21.2708,4518.7,4518.4,0.2837]
[1756344908256,21.2708,4518.7,4518.6,0.9865]
[1756344908472,20.679,4518.7,4518.6,0.9865]
[1756344909054,20.679,4518.7,4517.9,3.6137]
[1756344909257,0.5918,4518.6,4517.5,0.9865]
[1756344909760,0.2996,4518.5,4517.5,41.7865]
[1756344909960,0.2922,4518.4,4517.5,41.7865]
[1756344910260,0.2922,4518.2,4517.5,0.9865]
[1756344910456,0.2922,4518.2,4517.5,1.38491]
[1756344910652,20.694,4518.2,4517.7,4.1943]
[1756344910962,20.694,4518.2,4517.7,3.2078]
[1756344910963,0.5918,4517.8,4517.7,3.2078]
[1756344911466,7.42915,4517.8,4517.1,3.2078]
[1756344911648,0.2922,4517.5,4516.7,0.6896]
[1756344911847,20.697,4517.4,4516.5,3.2078]
[1756344912057,0.5918,4517.0,4516.3,0.2837]
[1756344912557,3.2078,4517.1,4516.1,0.7028]
[1756344912750,0.5918,4517.0,4516.2,0.2837]
[1756344912950,0.5918,4517.0,4516.3,0.4059]
[1756344913146,0.5918,4517.0,4516.4,0.2969]
[1756344913450,0.2922,4517.5,4516.8,0.6896]
[1756344913649,52.578,4517.9,4517.6,1.3849]
[1756344913851,52.578,4517.9,4517.8,0.9865]
[1756344914453,53.1698,4517.9,4517.8,0.9865]
[1756344914659,52.578,4517.9,4517.8,0.9865]
[1756344915355,53.1698,4517.9,4517.7,3.2078]
[1756344915547,0.5918,4517.8,4517.1,3.60624]
[1756344915755,20.698,4517.8,4517.4,0.4059]
[1756344915956,20.698,4517.8,4517.7,0.9865]
[1756344916658,0.2996,4518.3,4517.8,0.39839]
[1756344916855,8.9536,4518.3,4517.9,0.2837]
[1756344917051,8.9536,4518.3,4518.0,0.39836]
[1756344917352,8.9536,4518.3,4518.1,0.9865]
[1756344917550,8.9536,4518.3,4518.2,0.9865]
[1756344918347,8.654,4518.3,4518.2,0.9865]
[1756344918552,2.22,4518.0,4516.1,2.72428129]
[1756344918751,7.2580443,4516.2,4514.7,5.05937953]
[1756344918951,7.2580443,4516.2,4514.4,0.2837]
[1756344918952,3.2078,4515.1,4514.4,0.2837]
[1756344919152,3.2078,4514.6,4514.4,0.2837]
[1756344919454,0.1655,4514.4,4513.9,0.2969]
[1756344919760,21.20764618,4514.3,4513.9,0.2969]
[1756344919961,0.34264618,4514.2,4513.9,0.2969]
[1756344920160,20.865,4514.3,4513.9,0.2969]
[1756344920360,0.27880197,4514.2,4513.9,0.2969]
[1756344921358,0.39290197,4514.2,4513.9,0.18273654]
[1756344921563,0.27880197,4514.1,4514.0,0.2837]
[1756344921957,0.27880197,4514.1,4514.0,7.8974]
[1756344922157,3.2078,4514.6,4514.0,7.2078]
[1756344922355,0.19138993,4514.5,4514.2,0.6896]
[1756344922660,0.19137553,4514.4,4514.3,0.8046]
[1756344922862,3.2078,4514.6,4514.1,0.4059]
[1756344923055,0.19137335,4514.5,4514.4,0.6896]
[1756344923257,0.19137335,4514.5,4514.4,0.9865]
[1756344923556,20.846,4514.8,4514.7,0.9865]
[1756344923754,21.03726535,4514.8,4514.7,0.9865]
[1756344924661,3.2078,4515.2,4514.7,4.0]
[1756344924865,20.844,4516.0,4515.5,0.39859]
[1756344925055,20.844,4515.9,4514.9,0.4059]
[1756344925259,3.399,4516.2,4515.9,0.2837]
[1756344925560,11.161,4516.4,4516.2,0.39852]
[1756344925758,0.1912,4516.7,4516.3,1.10131]
[1756344926057,3.2078,4516.8,4516.5,0.39849]
[1756344926268,24.0508,4516.8,4516.7,0.7028]
[1756344926456,32.0842,4517.2,4517.0,0.2969]
[1756344926770,52.736,4517.2,4517.1,0.7028]
[1756344927064,53.0413,4517.2,4516.6,1.10129]
[1756344927261,0.1912,4517.1,4516.9,0.69536]
[1756344927459,52.736,4517.2,4517.1,0.9865]
[1756344927767,32.55384806,4517.2,4517.1,0.9865]
[1756344927965,53.38784806,4517.2,4517.1,0.9865]
[1756344928363,53.57904806,4517.2,4517.1,0.9865]
[1756344928865,53.38784806,4517.2,4517.1,0.9865]
[1756344929364,53.38084806,4517.2,4517.1,0.9865]
[1756344929958,0.66084806,4517.2,4517.1,0.9865]
[1756344930167,20.825,4517.4,4517.3,0.9865]
[1756344930466,21.48614452,4517.4,4517.3,0.9865]
[1756344930665,20.825,4517.4,4517.3,0.9865]
[1756344931166,20.825,4517.4,4517.3,0.77060513]
[1756344931362,21.48622442,4517.4,4517.3,0.60453215]
[1756344932572,20.825,4517.4,4517.3,0.60453215]
[1756344933269,21.3076,4517.4,4517.3,0.60453215]
[1756344934474,0.6945,4517.3,4517.2,0.39843]
[1756344934763,0.6945,4517.3,4517.0,0.9789]
[1756344934966,0.6945,4517.3,4516.0,0.2852]
[1756344934967,0.1906,4516.9,4516.0,0.2852]
[1756344935167,0.4826,4516.7,4516.0,0.2852]
[1756344935370,0.6945,4517.6,4516.9,0.4021]
[1756344935571,0.292,4517.4,4516.9,0.4021]
[1756344935767,0.66146908,4517.3,4517.0,0.2852]
[1756344936066,0.4826,4517.1,4517.0,0.6873]
[1756344936467,0.6945,4517.1,4517.0,0.6873]
[1756344936668,0.4025,4516.7,4516.6,3.2078]
[1756344936961,0.89495314,4516.7,4516.6,3.2078]
[1756344937162,0.4826,4516.4,4515.9,3.2078]
[1756344937373,0.39105314,4516.3,4515.9,3.2078]
[1756344937564,0.20045314,4516.2,4516.0,0.9789]
[1756344937867,0.49245314,4516.2,4516.1,0.6873]
[1756344938064,0.20045314,4516.2,4515.9,3.2078]
[1756344938267,0.292,4515.8,4515.6,0.2852]
[1756344938476,0.20045314,4515.7,4515.6,0.9789]
[1756344938769,0.68305314,4515.7,4515.3,0.2852]
[1756344938975,21.01245314,4515.6,4514.8,0.9789]
[1756344939274,0.292,4515.4,4514.8,0.9789]
[1756344939568,0.20045314,4515.3,4514.9,0.39863]
[1756344939768,0.20045314,4515.3,4514.7,0.39866]
[1756344939967,0.20045314,4515.3,4514.7,3.6099]
[1756344940269,0.20045314,4515.3,4515.1,0.9789]
[1756344940481,0.20045314,4515.2,4515.1,0.5768]
[1756344940769,0.20060564,4515.2,4515.1,0.9789]
[1756344941668,0.20062253,4515.5,4515.1,0.5768]
[1756344941871,0.20062253,4515.4,4515.0,0.39863]
[1756344942068,0.20062253,4515.3,4515.1,0.2916]
[1756344942268,0.20062253,4515.2,4515.1,0.9789]
[1756344942474,0.20062253,4515.2,4514.7,3.2078]
[1756344942671,0.2119,4515.0,4514.7,3.6099]
[1756344942969,0.292,4515.9,4514.8,0.2852]
[1756344943174,0.20062264,4515.8,4515.7,0.9789]
[1756344943674,0.89512264,4515.8,4515.7,0.2852]
[1756344943869,0.6945,4515.5,4515.4,0.2852]
[1756344944069,0.6945,4515.4,4515.2,0.2852]
[1756344944265,0.20059591,4515.3,4514.7,0.2852]
[1756344944569,0.20059591,4515.2,4514.6,41.0916]
[1756344944769,0.6945,4515.0,4514.7,0.6873]
[1756344944970,0.4826,4514.9,4514.8,0.2852]
[1756344945374,0.4826,4514.9,4514.8,0.6873]
[1756344945677,0.4826,4514.9,4514.8,0.9789]
[1756344946979,0.89521567,4514.9,4514.8,0.6873]
[1756344947280,0.89521567,4514.9,4514.8,0.52114002]
[1756344947482,0.68331567,4514.9,4514.8,0.81274002]
[1756344947671,0.49271567,4514.9,4514.8,0.81274002]
[1756344947870,0.49271567,4514.9,4514.4,40.8]
[1756344947871,0.20071567,4514.9,4514.5,0.4021]
[1756344948181,0.7688,4514.7,4514.6,0.4021]
[1756344948379,0.7688,4514.6,4514.5,0.4021]
[1756344948571,0.96951567,4514.6,4514.5,0.6937]
[1756344948773,0.7688,4514.5,4514.3,44.2994]
[1756344948966,0.20071567,4514.4,4514.3,44.2994]
[1756344949179,0.292,4514.5,4514.4,0.5768]
[1756344949380,0.20090385,4514.5,4514.4,0.5768]
[1756344949676,0.20090385,4514.5,4514.4,0.9789]
[1756344950078,0.68350385,4514.5,4514.4,0.9789]
[1756344950276,0.96970385,4514.5,4514.4,0.9789]
[1756344950781,0.49290385,4514.5,4514.4,0.9789]
[1756344951180,0.49303099,4514.5,4514.4,0.9789]
[1756344951676,0.7688,4514.4,4514.3,3.2078]
[1756344951882,0.292,4514.1,4513.9,0.9789]
[1756344952077,0.96983099,4514.0,4513.9,0.9789]
[1756344952778,0.20103099,4514.0,4513.5,0.6873]
[1756344952981,0.20103099,4513.9,4513.2,3.2078]
[1756344953176,0.20103099,4513.8,4513.2,3.2078]
[1756344953383,0.4826,4513.5,4512.7,3.2078]
[1756344953573,0.48723099,4513.4,4512.8,0.9789]
[1756344953770,0.1906,4513.6,4513.2,0.2916]
[1756344953771,0.20103099,4513.3,4513.2,0.2916]
[1756344953979,3.697,4513.9,4513.4,0.4021]
[1756344954180,0.49303056,4513.8,4513.5,0.2852]
[1756344954385,0.20103056,4513.7,4513.4,0.2916]
[1756344954581,3.2078,4514.2,4513.2,3.2078]
[1756344954885,0.20172644,4514.1,4513.7,0.39874]
[1756344955183,0.20172644,4514.0,4513.8,0.9789]
[1756344955378,0.20172644,4513.9,4513.8,0.9789]
[1756344956381,0.49372644,4513.9,4513.8,0.9789]
[1756344956782,0.20172644,4513.9,4513.8,4.1867]
[1756344957485,0.292,4514.5,4514.2,0.9789]
[1756344957684,0.39216695,4514.4,4514.2,0.4021]
[1756344957885,0.97036695,4514.3,4514.2,0.6937]
[1756344958083,0.97036695,4514.3,4514.2,0.4021]
[1756344958287,0.20156695,4514.3,4514.2,0.9789]
[1756344960288,0.20156695,4514.3,4514.2,0.81271555]
[1756344960885,3.2078,4514.7,4514.2,1.21141555]
[1756344961182,0.20045569,4514.6,4514.4,0.6873]
[1756344961390,0.20045569,4514.5,4514.4,0.6873]
[1756344961589,0.20051476,4514.5,4514.4,0.39868]
[1756344962083,0.50071476,4514.5,4514.3,3.60649]
[1756344962289,0.97471476,4514.4,4514.3,3.2078]
[1756344962787,0.20051476,4514.4,4514.0,0.2829]
[1756344963084,0.21595342,4515.8,4513.2,3.2078]
[1756344963085,0.7742,4514.1,4513.2,3.2078]
[1756344963279,12.731,4514.6,4512.6,0.4019]
[1756344963280,3.2078,4513.5,4512.6,0.4019]
[1756344963492,20.97551476,4513.4,4512.0,3.60669]
[1756344963683,0.1917,4513.1,4512.2,0.2829]
[1756344963883,0.5825,4512.9,4512.2,0.2829]
[1756344964082,0.3002,4512.7,4512.2,0.2829]
[1756344964287,0.3002,4512.5,4512.3,0.6848]
[1756344964586,0.7742,4512.3,4512.2,0.6848]
[1756344964782,0.97471476,4512.3,4512.2,0.6848]
[1756344965284,0.97471476,4512.3,4511.0,3.8926]
[1756344965285,0.3002,4512.0,4511.0,3.8926]
[1756344965588,0.20051476,4511.9,4511.5,3.2078]
[1756344965780,0.2823,4513.5,4511.8,4.63517541]
[1756344965984,3.2078,4513.6,4513.3,0.39877]
[1756344966177,0.3002,4514.3,4513.6,0.4019]
[1756344966383,3.2078,4514.7,4514.1,0.4019]
[1756344966585,0.9308559,4514.6,4513.9,3.2078]
[1756344966782,0.5825,4514.6,4514.0,0.6848]
[1756344966982,3.2078,4514.7,4513.9,0.2829]
[1756344966983,0.2823,4514.3,4513.9,0.2829]
[1756344967189,0.3002,4514.0,4513.9,1.08352]
[1756344967586,0.2823,4514.5,4514.2,0.3987]
[1756344967887,0.9483208,4514.4,4514.3,0.6848]
[1756344969283,0.3002,4514.3,4513.8,0.4019]
[1756344969484,0.7753,4514.1,4513.2,0.39879]
[1756344969785,0.2823,4513.5,4513.0,0.39881]
[1756344969989,0.493,4513.6,4513.0,0.39881]
[1756344970177,0.3002,4513.4,4512.8,1.08362]
[1756344970577,0.5825,4513.6,4512.9,0.68171]
[1756344970781,0.64849569,4513.5,4513.1,0.2829]
[1756344970995,3.2078,4513.7,4512.8,0.39882]
[1756344971191,1.2310206,4513.6,4513.0,0.3988]
[1756344971490,0.3002,4513.3,4513.1,0.6848]
[1756344971692,0.4751,4513.3,4513.1,0.6848]
[1756344971878,0.3002,4513.2,4513.1,0.6848]
[1756344972288,0.5825,4513.2,4513.1,0.6848]
[1756344972485,0.7753,4513.2,4512.8,0.39882]
[1756344972685,0.3002,4513.2,4512.6,3.2078]
[1756344972888,0.1928,4512.5,4512.3,0.2829]
[1756344973191,0.7753,4512.4,4512.3,0.2829]
[1756344973383,0.3002,4512.4,4512.3,0.6848]
[1756344974186,3.2078,4512.7,4512.0,0.80079]
[1756344974389,0.3002,4512.4,4511.9,0.4019]
[1756344974688,0.3002,4512.6,4511.7,0.2892]
[1756344974897,0.3002,4512.6,4511.8,0.6848]